[Event "EYCC 2017"]
[Site "Mamaia"]
[Date "2017.09.14"]
[Round "9"]
[White "Keskinler, Ela"]
[Black "Shukhman, Anna"]
[Result "0-1"]
[ECO "C03"]
[WhiteElo "1276"]
[BlackElo "1583"]
[Annotator "NA RC"]
[PlyCount "142"]
[EventDate "2017.??.??"]
[EventType "swiss"]
[EventCountry "ROU"]
[SourceTitle "playchess.com"]
[Source "ChessBase"]
[SourceQuality "1"]
[TimeControl "40/5400+30:1800+30"]

1. e4 {[%emt 0:00:00]} e6 {[%emt 0:00:18]} 2. d4 {[%emt 0:00:00]} d5 {[%emt 0:00:04]} 3. Nd2 {[%emt 0:00:40]} dxe4 {[%emt 0:00:13]} 4. Nxe4 {[%emt 0:00:05]} Nf6 {[%emt 0:00:07]} 5. Bd3 {[%emt 0:01:02]} Nbd7 {[%emt 0:00:17]} 6. Qe2 {[%emt 0:01:49]} Nxe4 {[%emt 0:00:39]} 7. Bxe4 {[%emt 0:00:08]} Nf6 {[%emt 0:01:02]} 8. Bxb7 {[%emt 0:00:15]} Bxb7 {[%emt 0:00:47]} 9. Qb5+ {[%emt 0:00:05]} Qd7 {[%emt 0:00:58]} 10. Qxb7 {[%emt 0:00:07]} Rd8 {[%emt 0:00:04]} 11. Nf3 {[%emt 0:00:22]} Be7 {[%emt 0:00:57]} 12. O-O {[%emt 0:00:15]} Nd5 {[%emt 0:00:18]} 13. Ne5 {[%emt 0:01:17]} Qc8 {[%emt 0:05:15]} 14. Qb5+ {[%emt 0:01:38]} Kf8 {[%emt 0:00:37]} 15. Nc6 {[%emt 0:02:38]} a6 {[%emt 0:02:51]} 16. Nxe7 {[%emt 0:01:02]} axb5 {[%emt 0:00:26]} 17. Nxc8 {[%emt 0:00:08]} Rxc8 {[%emt 0:00:04]} 18. Re1 {[%emt 0:02:05]} Ke7 {[%emt 0:01:05]} 19. b3 {[%emt 0:03:29]} b4 {[%emt 0:01:06]} 20. a3 {[%emt 0:00:37]} c5 {[%emt 0:04:19]} 21. dxc5 {[%emt 0:00:13]} Rxc5 {[%emt 0:00:27]} 22. axb4 {[%emt 0:03:26]} Rxc2 {[%emt 0:00:43]} 23. Bg5+ {[%emt 0:00:44]} f6 {[%emt 0:00:16]} 24. Ra7+ {[%emt 0:00:24]} Rc7 {[%emt 0:00:56]} 25. Rxc7+ {[%emt 0:01:29]} Nxc7 {[%emt 0:00:04]} 26. Be3 {[%emt 0:00:40]} Rb8 {[%emt 0:01:02]} 27. Rc1 {[%emt 0:04:11]} Na6 {[%emt 0:03:45]} 28. Rc4 {[%emt 0:01:41]} Kf7 {[%emt 0:03:27]} 29. Bd2 {[%emt 0:02:25]} Rd8 {[%emt 0:00:10]} 30. Be1 {[%emt 0:01:19]} Rd7 {[%emt 0:02:52]} 31. b5 {[%emt 0:01:19]} Nc7 {[%emt 0:00:57]} 32. b6 {[%emt 0:02:36]} Nd5 {[%emt 0:00:11]} 33. Rc6 {[%emt 0:01:08]} Ke7 {[%emt 0:00:36]} 34. b4 {[%emt 0:02:14]} Rb7 {[%emt 0:00:54]} 35. b5 {[%emt 0:11:52]} Rxb6 {[%emt 0:01:22]} 36. Bb4+ {[%emt 0:02:22]} Kd7 {[%emt 0:00:06]} 37. Rxb6 {[%emt 0:03:26]} Nxb6 {[%emt 0:00:14]} 38. Kf1 {[%emt 0:38:14]} Nd5 {[%emt 0:00:08]} 39. Bd2 {[%emt 0:02:18]} Kc7 {[%emt 0:00:09]} 40. Ke2 {[%emt 0:00:00]} Kb6 {[%emt 0:00:16]} 41. Kd3 {[%emt 0:16:12]} Kxb5 {[%emt 0:00:10]} 42. Ke4 {[%emt 0:00:28]} Ne7 {[%emt 0:00:13]} 43. f4 {[%emt 0:00:11]} Kc6 {[%emt 0:00:24]} 44. g4 {[%emt 0:00:24]} Kd7 {[%emt 0:00:34]} 45. h4 {[%emt 0:00:39]} g6 {[%emt 0:00:57]} 46. Bc3 {[%emt 0:04:02]} Nd5 {[%emt 0:01:06]} 47. Bd4 {[%emt 0:00:12]} f5+ {[%emt 0:01:38]} 48. gxf5 {[%emt 0:01:00]} gxf5+ {[%emt 0:00:03]} 49. Ke5 {[%emt 0:00:10]} Ne7 {[%emt 0:00:12]} 50. Bf2 {[%emt 0:00:27]} Ng6+ {[%emt 0:00:08]} 51. Kd4 {[%emt 0:04:34]} Nxf4 {[%emt 0:00:04]} 52. Ke3 {[%emt 0:00:10]} Nd5+ {[%emt 0:00:07]} 53. Kf3 {[%emt 0:00:14]} Nf6 {[%emt 0:00:14]} 54. Bg3 {[%emt 0:00:12]} Ng4 {[%emt 0:00:04]} 55. Bf4 {[%emt 0:00:59]} e5 {[%emt 0:00:08]} 56. Bg3 {[%emt 0:00:23]} Ke6 {[%emt 0:00:04]} 57. h5 {[%emt 0:00:26]} Nf6 {[%emt 0:00:09]} 58. h6 {[%emt 0:00:35]} Ng4 {[%emt 0:00:10]} 59. Ke2 {[%emt 0:00:07]} f4 {[%emt 0:00:06]} 60. Be1 {[%emt 0:00:10]} e4 {[%emt 0:00:07]} 61. Bd2 {[%emt 0:00:23]} f3+ {[%emt 0:01:16]} 62. Kf1 {[%emt 0:00:31]} e3 {[%emt 0:02:12]} 63. Bc3 {[%emt 0:00:13]} Kf5 {[%emt 0:00:08]} 64. Ke1 {[%emt 0:00:10]} Ke4 {[%emt 0:00:06]} 65. Bb4 {[%emt 0:00:13]} Kd3 {[%emt 0:00:20]} 66. Bc5 {[%emt 0:00:19]} f2+ {[%emt 0:00:05]} 67. Kf1 {[%emt 0:00:07]} e2+ {[%emt 0:00:04]} 68. Kg2 {[%emt 0:00:05]} f1=Q+ {[%emt 0:00:17]} 69. Kg3 {[%emt 0:00:07]} e1=Q+ {[%emt 0:00:28]} 70. Kxg4 {[%emt 0:00:13]} Qg2+ {[%emt 0:00:06]} 71. Kf4 {[%emt 0:00:37]} Qee4# {[%emt 0:00:05]} 0-1

[Event "EYCC 2017"]
[Site "Mamaia"]
[Date "2017.09.14"]
[Round "9"]
[White "Darie, Cleopatra-Iuliana"]
[Black "Zavivaeva, Evelina"]
[Result "0-1"]
[ECO "C01"]
[WhiteElo "1120"]
[BlackElo "1406"]
[Annotator "NA RC"]
[PlyCount "176"]
[EventDate "2017.??.??"]
[EventType "swiss"]
[EventCountry "ROU"]
[SourceTitle "playchess.com"]
[Source "ChessBase"]
[SourceQuality "1"]
[TimeControl "40/5400+30:1800+30"]

1. e4 {[%emt 0:00:00]} e6 {[%emt 0:00:27]} 2. d4 {[%emt 0:00:00]} d5 {[%emt 0:00:07]} 3. exd5 {[%emt 0:00:18]} exd5 {[%emt 0:00:11]} 4. Bd3 {[%emt 0:00:40]} Nc6 {[%emt 0:00:08]} 5. Nf3 {[%emt 0:00:32]} Bg4 {[%emt 0:03:22]} 6. Be3 {[%emt 0:02:33]} Bb4+ {[%emt 0:01:40]} 7. Nc3 {[%emt 0:01:37]} Nf6 {[%emt 0:00:58]} 8. h3 {[%emt 0:00:40]} Be6 {[%emt 0:06:39]} 9. Bd2 {[%emt 0:03:42]} Qe7 {[%emt 0:00:37]} 10. O-O {[%emt 0:00:57]} O-O-O {[%emt 0:03:21]} 11. Qe2 {[%emt 0:02:04]} Rdg8 {[%emt 0:04:23]} 12. Bb5 {[%emt 0:07:16]} Qd6 {[%emt 0:08:41]} 13. Rfe1 {[%emt 0:08:18]} h6 {[%emt 0:02:50]} 14. a3 {[%emt 0:01:22]} Bxc3 {[%emt 0:01:53]} 15. bxc3 {[%emt 0:01:27]} g5 {[%emt 0:01:35]} 16. c4 {[%emt 0:01:41]} dxc4 {[%emt 0:05:01]} 17. Bxc4 {[%emt 0:02:22]} Nd5 {[%emt 0:02:32]} 18. Reb1 {[%emt 0:02:36]} Nb6 {[%emt 0:01:59]} 19. Bxe6+ {[%emt 0:04:57]} fxe6 {[%emt 0:00:57]} 20. Re1 {[%emt 0:02:22]} Rg6 {[%emt 0:02:55]} 21. Qe4 {[%emt 0:04:19]} Rhg8 {[%emt 0:01:13]} 22. Bb4 {[%emt 0:04:47]} Qd7 {[%emt 0:05:51]} 23. Ne5 {[%emt 0:02:37]} Nxe5 {[%emt 0:01:01]} 24. Qxe5 {[%emt 0:01:36]} g4 {[%emt 0:01:31]} 25. h4 {[%emt 0:00:55]} g3 {[%emt 0:01:34]} 26. f3 {[%emt 0:00:50]} Kb8 {[%emt 0:04:50]} 27. Rac1 {[%emt 0:10:27]} Rd8 {[%emt 0:05:06]} 28. Bc3 {[%emt 0:01:48]} Qc6 {[%emt 0:05:27]} 29. Ba1 {[%emt 0:02:04]} Nc4 {[%emt 0:03:27]} 30. Qf4 {[%emt 0:01:47]} Nxa3 {[%emt 0:01:36]} 31. Qf7 {[%emt 0:00:40]} Rdg8 {[%emt 0:01:00]} 32. Re5 {[%emt 0:01:56]} Qe8 {[%emt 0:02:19]} 33. Qf4 {[%emt 0:01:10]} Nc4 {[%emt 0:01:27]} 34. Rc5 {[%emt 0:00:38]} Nd6 {[%emt 0:00:34]} 35. Rb1 {[%emt 0:02:10]} Qf7 {[%emt 0:02:11]} 36. Qe3 {[%emt 0:00:19]} Ka8 {[%emt 0:01:00]} 37. Qc3 {[%emt 0:00:57]} R6g7 {[%emt 0:02:36]} 38. Qa3 {[%emt 0:02:54]} b6 {[%emt 0:03:08]} 39. Rc3 {[%emt 0:00:39]} Qe8 {[%emt 0:03:10]} 40. Qa6 {[%emt 0:00:00]} Qb8 {[%emt 0:01:23]} 41. Rcb3 {[%emt 0:03:29]} Qb7 {[%emt 0:01:31]} 42. Qa4 {[%emt 0:01:01]} a6 {[%emt 0:03:44]} 43. c4 {[%emt 0:01:33]} Kb8 {[%emt 0:12:04]} 44. c5 {[%emt 0:02:00]} Nb5 {[%emt 0:03:30]} 45. d5 {[%emt 0:02:28]} Re7 {[%emt 0:03:32]} 46. c6 {[%emt 0:03:33]} Qa7 {[%emt 0:01:14]} 47. Qc4 {[%emt 0:03:54]} Nd6 {[%emt 0:03:39]} 48. Qd4 {[%emt 0:02:22]} b5 49. Qxa7+ {[%emt 0:01:59]} Kxa7 {[%emt 0:02:46]} 50. dxe6 {[%emt 0:00:45]} Rxe6 {[%emt 0:00:54]} 51. Bd4+ {[%emt 0:00:47]} Kb8 {[%emt 0:01:10]} 52. Ra3 {[%emt 0:00:37]} Rge8 {[%emt 0:04:55]} 53. Bc3 {[%emt 0:00:56]} Nc8 {[%emt 0:02:22]} 54. Rxa6 {[%emt 0:01:39]} Na7 {[%emt 0:00:49]} 55. Ba5 {[%emt 0:05:26]} R8e7 {[%emt 0:01:36]} 56. Bb4 {[%emt 0:00:56]} Re8 {[%emt 0:00:39]} 57. Bc3 {[%emt 0:02:15]} Nxc6 {[%emt 0:02:34]} 58. Rxb5+ {[%emt 0:00:43]} Kc8 {[%emt 0:00:10]} 59. Kf1 {[%emt 0:00:56]} Kd7 {[%emt 0:00:44]} 60. Rd5+ {[%emt 0:00:52]} Ke7 {[%emt 0:00:33]} 61. Be1 {[%emt 0:01:33]} Rg8 {[%emt 0:00:38]} 62. Rc5 {[%emt 0:00:52]} Kd7 {[%emt 0:00:21]} 63. Rd5+ {[%emt 0:00:51]} Rd6 {[%emt 0:00:18]} 64. Rxd6+ {[%emt 0:00:17]} cxd6 {[%emt 0:00:21]} 65. Ke2 {[%emt 0:01:16]} Ne5 {[%emt 0:00:24]} 66. Ra7+ {[%emt 0:00:56]} Ke6 {[%emt 0:00:16]} 67. Ra6 {[%emt 0:01:13]} Nf7 {[%emt 0:00:54]} 68. Ke3 {[%emt 0:00:44]} Ke5 {[%emt 0:00:22]} 69. Ra7 {[%emt 0:00:34]} Ke6 {[%emt 0:00:34]} 70. Kf4 {[%emt 0:00:17]} Ne5 {[%emt 0:00:29]} 71. Bc3 {[%emt 0:01:11]} Nd3+ {[%emt 0:00:28]} 72. Ke3 {[%emt 0:00:40]} Ne5 {[%emt 0:00:46]} 73. Bxe5 {[%emt 0:00:28]} Kxe5 {[%emt 0:00:33]} 74. Rh7 {[%emt 0:00:21]} Rg6 {[%emt 0:00:12]} 75. f4+ {[%emt 0:00:18]} Kf5 {[%emt 0:00:27]} 76. Kf3 {[%emt 0:01:07]} d5 {[%emt 0:00:47]} 77. Rd7 {[%emt 0:00:23]} Ke6 {[%emt 0:00:15]} 78. Rd8 {[%emt 0:00:20]} Rg7 {[%emt 0:00:42]} 79. Ra8 {[%emt 0:00:48]} Kd6 {[%emt 0:00:55]} 80. Ra6+ {[%emt 0:00:08]} Kc5 {[%emt 0:00:13]} 81. Rxh6 {[%emt 0:00:18]} Kc4 {[%emt 0:00:16]} 82. Ke2 {[%emt 0:00:46]} d4 {[%emt 0:00:32]} 83. Kd2 {[%emt 0:00:19]} Rg4 {[%emt 0:00:20]} 84. f5 {[%emt 0:00:22]} Rf4 {[%emt 0:00:17]} 85. f6 {[%emt 0:01:55]} Rf2+ {[%emt 0:00:20]} 86. Ke1 {[%emt 0:00:11]} Kd3 {[%emt 0:00:47]} 87. Rg6 {[%emt 0:00:50]} Rxg2 {[%emt 0:01:02]} 88. f7 {[%emt 0:00:24]} Rg1# {[%emt 0:00:14]} 0-1

[Event "EYCC 2017"]
[Site "Mamaia"]
[Date "2017.09.14"]
[Round "9"]
[White "Andries, Alexia"]
[Black "Smietanska, Wiktoria"]
[Result "0-1"]
[ECO "D37"]
[WhiteElo "1110"]
[BlackElo "1446"]
[Annotator "NA RC"]
[PlyCount "110"]
[EventDate "2017.??.??"]
[EventType "swiss"]
[EventCountry "ROU"]
[SourceTitle "playchess.com"]
[Source "ChessBase"]
[SourceQuality "1"]
[TimeControl "40/5400+30:1800+30"]

1. d4 {[%emt 0:00:00]} d5 {[%emt 0:00:09]} 2. c4 {[%emt 0:00:00]} e6 {[%emt 0:00:07]} 3. Nc3 {[%emt 0:00:00]} Be7 {[%emt 0:00:10]} 4. Nf3 {[%emt 0:00:00]} Nf6 {[%emt 0:00:12]} 5. Bf4 {[%emt 0:00:26]} O-O {[%emt 0:00:15]} 6. e3 {[%emt 0:00:05]} b6 {[%emt 0:00:11]} 7. Bd3 {[%emt 0:00:21]} Ba6 {[%emt 0:00:57]} 8. cxd5 {[%emt 0:01:46]} Nxd5 {[%emt 0:00:45]} 9. Bxa6 {[%emt 0:01:32]} Nxa6 {[%emt 0:01:09]} 10. O-O {[%emt 0:00:23]} Nxf4 {[%emt 0:03:35]} 11. exf4 {[%emt 0:00:58]} Qd6 {[%emt 0:19:33]} 12. Qd2 {[%emt 0:01:17]} Rfd8 {[%emt 0:12:14]} 13. Rad1 {[%emt 0:10:13]} Nb4 {[%emt 0:08:55]} 14. a3 {[%emt 0:00:20]} Nd5 {[%emt 0:01:11]} 15. Ne4 {[%emt 0:01:16]} Qxf4 {[%emt 0:03:31]} 16. Qxf4 {[%emt 0:01:06]} Nxf4 {[%emt 0:00:15]} 17. Ne5 {[%emt 0:01:39]} Ne2+ {[%emt 0:02:18]} 18. Kh1 {[%emt 0:00:22]} Nxd4 {[%emt 0:03:09]} 19. Rd2 {[%emt 0:12:30]} f6 {[%emt 0:02:09]} 20. Nc4 {[%emt 0:02:34]} e5 {[%emt 0:01:57]} 21. Rfd1 {[%emt 0:02:49]} Rd7 {[%emt 0:07:05]} 22. h3 {[%emt 0:05:13]} Rad8 {[%emt 0:01:25]} 23. b3 {[%emt 0:02:25]} Kf8 {[%emt 0:01:38]} 24. b4 {[%emt 0:03:29]} Ke8 {[%emt 0:03:26]} 25. Nc3 {[%emt 0:02:10]} a6 {[%emt 0:02:53]} 26. Ne3 {[%emt 0:08:49]} c6 {[%emt 0:03:35]} 27. Nc4 {[%emt 0:04:27]} b5 {[%emt 0:02:02]} 28. Ne3 {[%emt 0:00:27]} Ne6 {[%emt 0:02:32]} 29. Rxd7 {[%emt 0:00:31]} Rxd7 {[%emt 0:02:37]} 30. Kg1 {[%emt 0:00:25]} Rxd1+ {[%emt 0:01:03]} 31. Nexd1 {[%emt 0:00:18]} Nd4 {[%emt 0:00:23]} 32. Kf1 {[%emt 0:00:40]} Nc2 {[%emt 0:01:14]} 33. Nb1 {[%emt 0:00:07]} c5 {[%emt 0:01:26]} 34. Ke2 {[%emt 0:00:14]} cxb4 {[%emt 0:01:19]} 35. Kd2 {[%emt 0:01:33]} Nxa3 {[%emt 0:00:18]} 36. Nxa3 {[%emt 0:00:42]} bxa3 {[%emt 0:00:07]} 37. Kc2 {[%emt 0:00:09]} f5 {[%emt 0:00:20]} 38. Kb3 {[%emt 0:00:30]} e4 {[%emt 0:00:35]} 39. Ne3 {[%emt 0:00:33]} g6 {[%emt 0:00:16]} 40. Ka2 {[%emt 0:00:00]} Kd7 {[%emt 0:00:20]} 41. Kb3 {[%emt 0:01:46]} Kc6 {[%emt 0:00:14]} 42. Ka2 {[%emt 0:00:10]} Bc5 {[%emt 0:00:12]} 43. Nd1 {[%emt 0:00:34]} f4 {[%emt 0:00:18]} 44. Kb3 {[%emt 0:00:33]} e3 {[%emt 0:00:15]} 45. fxe3 {[%emt 0:00:11]} fxe3 {[%emt 0:00:06]} 46. Nc3 {[%emt 0:00:25]} b4 {[%emt 0:00:23]} 47. Ne2 {[%emt 0:00:07]} Kd5 {[%emt 0:00:18]} 48. Ka2 {[%emt 0:00:16]} Ke4 {[%emt 0:00:14]} 49. Kb3 {[%emt 0:00:18]} Kd3 {[%emt 0:00:15]} 50. Nc1+ {[%emt 0:00:14]} Kd2 {[%emt 0:00:13]} 51. Ka2 {[%emt 0:00:25]} Kxc1 {[%emt 0:00:11]} 52. Kb3 {[%emt 0:00:08]} e2 {[%emt 0:00:05]} 53. Ka2 {[%emt 0:00:13]} e1=Q {[%emt 0:00:10]} 54. Kb3 {[%emt 0:00:09]} Qc3+ {[%emt 0:00:05]} 55. Ka2 {[%emt 0:00:14]} Qb2# {[%emt 0:00:05]} 0-1